Cogmind - Beta 13 X1 @@@ ROGUE MODE // 2023.07.05 @ 10:13:46 Player: maxwell Result: Destroyed by 72-F0F(R) with Subdweller Machine Gun Performance ------------- Evolutions (0) 0 Regions Visited (2) 400 Robots Destroyed (13) 65 Value Destroyed (280) 280 Prototype IDs (0) 0 Alien Tech Used (0) 0 Bonus (0) 0 TOTAL SCORE: 745 Bonus ------- None Cogmind --------- Core Integrity 0/250 Matter 162/300 Energy 100/100 System Corruption 0% Temperature Cool (0) Movement Core (250) Ox4 Location -10/Subcaves Parts ------- > --- POWER (1) -------- (None) > --- PROPULSION (2) --- (None) > --- UTILITY (2) ------ Small Storage Unit > --- WEAPON (2) ------- Subdweller Machine Gun Subdweller Machine Gun > --- INVENTORY (8) ---- Ion Engine Subdweller Power Source Compact Wheel Medium Laser Battle Cannon Battle Cannon Makeshift Axe Peak State ------------ > --- POWER ------------ Light Ion Engine > --- PROPULSION ------- Light Treads Compact Wheel > --- UTILITY ---------- Small Storage Unit Subdweller Optics > --- WEAPON ----------- Subdweller Machine Gun Subdweller Machine Gun > --- INVENTORY -------- Ion Engine Subdweller Power Source Compact Wheel Medium Laser Battle Cannon Battle Cannon Makeshift Axe [Rating: 11] Favorites ----------- Power Light Ion Engine Engine Light Ion Engine Propulsion Light Treads Treads Light Treads Leg Aluminum Leg Wheel Compact Wheel Utility Small Storage Unit Device Subdweller Optics Storage Small Storage Unit Weapon Medium Laser Energy Gun Medium Laser Ballistic Gun Light Assault Rifle Ballistic Cannon Battle Cannon Build | -11 -10 -10 ------- Run | Jun Mat Sub Slots Evolved . | . . . Power . | . . . Propulsion . | . . . Utility . | . . . Weapon . | . . . Parts Attached 13 | . 3 10 Power 1 | . . 1 Engine 1 | . . 1 Core . | . . . Reactor . | . . . Propulsion 4 | . 1 3 Treads 2 | . . 2 Leg 1 | . 1 . Wheel 1 | . . 1 Hover . | . . . Flight . | . . . Utility 2 | . . 2 Device 2 | . . 2 Storage . | . . . Processor . | . . . Hackware . | . . . Protection . | . . . Artifact . | . . . Weapon 6 | . 2 4 Energy Gun 2 | . 2 . Energy Cannon . | . . . Ballistic Gun 3 | . . 3 Ballistic Cannon 1 | . . 1 Launcher . | . . . Special Weapon . | . . . Impact Weapon . | . . . Slashing Weapon . | . . . Piercing Weapon . | . . . Special Melee Weapon . | . . . Unidentified Prototypes . | . . . Parts Lost 5 | . . 5 Power 1 | . . 1 Propulsion 3 | . . 3 Utility 1 | . . 1 Weapon . | . . . Highest Loss Streak 4 | . . 4 To Critical Strikes . | . . . Average Slot Usage (%) 95 | . 83 97 Engine 13 | . 14 13 Treads 18 | . . 21 Leg 4 | . 27 . Wheel 4 | . . 4 Device 10 | . . 12 Storage 14 | . 14 14 Energy Gun 15 | . 27 14 Ballistic Gun 5 | . . 6 Ballistic Cannon 6 | . . 7 Naked Turns . | . . . Heaviest Build 18 | 13 13 18 Greatest Support 40 | 20 20 40 Greatest Overweight (x) 1 | . 1 . Average Overweight (x) . | . . . Largest Inventory Capacity 8 | . 8 8 Average Capacity 8 | . 8 8 Most Carried 8 | . 6 8 Average Carried 7 | . 6 7 Final Capacity 8 | 8 8 8 Final Carried 7 | 6 6 7 Class Distribution -------------------- 100% | Mutant Dominant Class ---------------- Mutant | -10/Materials Mutant | -10/Subcaves Resources | -11 -10 -10 ----------- Run | Jun Mat Sub Matter Collected 462 | 200 . 262 Remotely . | . . . Salvage Created 271 | . 48 223 Parts 27 | . 4 23 Haulers Intercepted . | . . . Recyclers Shooed . | . . . Parts Field Recycled . | . . . Retrieved Matter . | . . . Parts Self-Destructed 20 | . . 20 Prevented . | . . . Kills | -11 -10 -10 ------- Run | Jun Mat Sub Combat Hostiles Destroyed 13 | . 3 10 Guns 10 | . 3 7 Cannons 3 | . . 3 Classes Destroyed 2 | . 1 1 Swarmer 8 | . 3 5 Subdweller 5 | . . 5 Best Kill Streak 4 | . 3 4 Combat Bots Only 4 | . 3 4 Max Kills in Single Turn 1 | . 1 1 Gunslinging . | . . . Exploded . | . . . Melee . | . . . Uniques/NPCs Destroyed . | . . . Combat | -11 -10 -10 -------- Run | Jun Mat Sub Damage Taken 979 | . 61 918 Core 250 | . 27 223 Absorbed by Shields . | . . . Core Remaining (%) 100 | 100 . . Volleys Fired 82 | . 7 75 Largest 2 | . 2 2 Hottest 90 | . 90 89 Shots Fired 122 | . 14 108 Gun 73 | . 14 59 Cannon 49 | . . 49 Launcher . | . . . Special . | . . . Kinetic 84 | . . 84 Thermal 38 | . 14 24 Explosive . | . . . Electromagnetic . | . . . Robot Hit Streak 12 | . 2 12 Robot Miss Streak 7 | . 6 7 Penetration Max . | . . . Secondary Targets 2 | . . 2 Max Gunslinging Chain 1 | . . 1 Shots Hit Robots 54 | . 3 51 Core Hits 19 | . 3 16 Critical Kills . | . . . Critical Parts Destroyed . | . . . Critical Strikes 3 | . . 3 Burn 2 | . . 2 Blast 1 | . . 1 Melee Attacks . | . . . Impact . | . . . Slashing . | . . . Piercing . | . . . Sneak Attacks . | . . . Combat Hostiles . | . . . Follow-up Attacks . | . . . Damage Inflicted 857 | . 41 816 Guns 589 | . 34 555 Cannons 261 | . . 261 Explosions . | . . . Melee . | . . . Ramming 7 | . 7 . Kinetic 591 | . . 591 Thermal 259 | . 34 225 Explosive . | . . . Electromagnetic . | . . . Impact . | . . . Slashing . | . . . Piercing . | . . . Highest Corruption . | . . . Average Corruption . | . . . Corruption Purged . | . . . Corruption Blocked . | . . . Overload Shots . | . . . Overflow Damage . | . . . Projectiles . | . . . Explosions . | . . . Melee . | . . . Knockbacks 5 | . . 5 Impact . | . . . Kinetic 5 | . . 5 Secondary . | . . . Self-Inflicted Damage . | . . . Shots . | . . . Rammed . | . . . Targets Rammed 2 | . 2 . Kicked 2 | . 2 . Crushed . | . . . Highest Temperature 120 | . 120 . Average Temperature 56 | . 56 . Received Heat Transfer 96 | . . 96 Siege Activations . | . . . Robots Corrupted . | . . . Combat Hostiles . | . . . Parts Fried . | . . . Impact Corruptions . | . . . Robots Melted . | . . . Combat Hostiles . | . . . Parts Melted . | . . . Heat Transferred 901 | . 87 814 Parts Sabotaged . | . . . Parts Stolen . | . . . Parts Stripped . | . . . Power Chain Reactions . | . . . Missiles Intercepted . | . . . Alert | -11 -10 -10 ------- Run | Jun Mat Sub Peak Influence 85 | . 85 . Initial . | . . . Average 73 | . 73 . Maximum Alert Level . | . . . Low Security (%) 100 | . 100 . Level 1 . | . . . Level 2 . | . . . Level 3 . | . . . Level 4 . | . . . Level 5 . | . . . High Security . | . . . Max Security . | . . . Squads Dispatched . | . . . Investigation . | . . . Extermination . | . . . Reinforcement . | . . . Assault . | . . . Garrison . | . . . Intercept . | . . . Searches Triggered . | . . . Construction Impeded . | . . . Haulers Reinforced . | . . . Active Scanning Responses . | . . . Cargo Convoy Interrupts . | . . . Stealth | -11 -10 -10 --------- Run | Jun Mat Sub Distress Signals . | . . . Communications Jammed . | . . . Distress Signals . | . . . Times Spotted 16 | . 4 12 Peak Tracking Total 6 | . 3 6 Tactical Retreats 2 | . . 2 Traps | -11 -10 -10 ------- Run | Jun Mat Sub Traps Triggered 3 | . 1 2 Indirectly . | . . . Trap Hack Attempts . | . . . Triggered . | . . . Disarmed . | . . . Reprogrammed . | . . . Reused . | . . . Traps Extracted . | . . . Installed . | . . . Triggered . | . . . Machines | -11 -10 -10 ---------- Run | Jun Mat Sub Machines Disabled . | . . . Max in Single Turn . | . . . Machines Repaired . | . . . Machines Sabotaged . | . . . Overloaded Fab Kills . | . . . Hacking | -11 -10 -10 --------- Run | Jun Mat Sub Machines Accessed . | . . . Terminals . | . . . Fabricators . | . . . Repair Stations . | . . . Recycling Units . | . . . Scanalyzers . | . . . Garrison Access . | . . . Total Hacks . | . . . Successful . | . . . Failed . | . . . Catastrophic . | . . . Database Lockouts . | . . . Manual . | . . . Terminals . | . . . Fabricators . | . . . Repair Stations . | . . . Recycling Units . | . . . Scanalyzers . | . . . Garrison Access . | . . . Terminal Hacks . | . . . Fabricator Hacks . | . . . Repair Station Hacks . | . . . Recycling Unit Hacks . | . . . Scanalyzer . | . . . Garrison Access Hacks . | . . . Unauthorized Hacks . | . . . Terminals . | . . . Fabricators . | . . . Repair Stations . | . . . Recycling Units . | . . . Scanalyzers . | . . . Garrison Access . | . . . Data Cores Recovered . | . . . Used . | . . . Hacking Detections . | . . . Full Trace Events . | . . . Feedback Events . | . . . Feedback Blocked . | . . . Robot Schematics Acquired . | . . . Robots Built . | . . . Authchips . | . . . Time . | . . . Total Robot Build Rating . | . . . Part Schematics Acquired . | . . . Parts Built . | . . . Authchips . | . . . Time . | . . . Total Part Build Rating . | . . . Parts Repaired . | . . . Time . | . . . Parts Recycled . | . . . Recycled Matter . | . . . Retrieved Matter . | . . . Retrieved Components . | . . . Parts Scanalyzed . | . . . Part Schematics Acquired . | . . . Parts Damaged . | . . . Bothacking | -11 -10 -10 ------------ Run | Jun Mat Sub Used RIF Installer . | . . . Robots Hacked . | . . . Non-combat . | . . . Combat . | . . . Robot Hacks Applied . | . . . Relay Couplers Released . | . . . Fabnet Peak Effective % . | . . . Robots Rewired . | . . . Allies Hacked . | . . . Hacks Repelled . | . . . Allies | -11 -10 -10 -------- Run | Jun Mat Sub Total Allies . | . . . Largest Group . | . . . Highest-Rated Group . | . . . Highest-Rated Ally . | . . . Total Orders . | . . . Ally Attacks . | . . . Total Damage . | . . . Kills . | . . . Allies Corrupted . | . . . Allies Melted . | . . . Intel | -11 -10 -10 ------- Run | Jun Mat Sub Robot Analysis Total . | . . . Derelict Logs Recovered 1 | . . 1 Drone Launches . | . . . Drone Recoveries . | . . . Exploration | -11 -10 -10 ------------- Run | Jun Mat Sub Turns Passed 1859 | . 262 1597 Spaces Moved 1052 | 1 193 858 Core . | . . . Treads 820 | . . 820 Legs 232 | 1 193 38 Wheels . | . . . Hover . | . . . Flight . | . . . Fastest Speed 120 | 120 120 120 Average Speed 151 | 120 121 158 Slowest Speed 190 | 120 190 160 Overloaded Moves . | . . . Propulsion Burnouts . | . . . Robots Hopped . | . . . Cave-ins Triggered . | . . . Exploration Rate (%) 33 | 3 34 62 Regions Visited 2 Branch Regions 1 Pre-discovered Areas . | . . . Known Exits Taken . | . . . Unknown Exits Taken 2 | 1 1 . Scrap Searched 9 | . . 9 Spaces Dug 3 | . . 3 Terrain Destroyed 3 | . . 3 Melee . | . . . Projectile 3 | . . 3 AOE . | . . . Terrain Rammed . | . . . Walls Destroyed . | . . . Machines Disabled . | . . . Actions | -11 -10 -10 --------- Run | Jun Mat Sub Total 1196 | . 205 991 Wait 31 | . 1 30 Move 1050 | . 192 858 Hop . | . . . Pick Up 9 | . . 9 Fast Attach 5 | . 3 2 Attach 2 | . . 2 Detach . | . . . Swap 6 | . . 6 Drop 9 | . . 9 Fire 82 | . 7 75 Melee . | . . . Ram . | . . . Kick 2 | . 2 . Crush . | . . . Escape Stasis . | . . . Rewire . | . . . Trap . | . . . Miscellaneous . | . . . Route ------- -11/Junkyard -10/Materials (discovered 2 exits: [*Mat] / [*Sub]) -10/Subcaves (discovered 1 exit: [*Mat]) History --------- Turn | Location | Event 1 | -11/Junkyard | Discovered new exit (range 0) 1 | -11/Junkyard | Entered Materials 127 | -10/Materials | Discovered new exit (range 15) 252 | -10/Materials | Discovered new exit (range 6) 263 | -10/Materials | Entered Subcaves 273 | -10/Subcaves | Shifting Twisted Machinery released Battle Cannon 275 | -10/Subcaves | Shifting Twisted Machinery released Mak. Axe 335 | -10/Subcaves | Build established: Mutant 1062 | -10/Subcaves | Shifting Twisted Machinery released Sub. Machine Gun 1084 | -10/Subcaves | Shifting Twisted Machinery released Battle Rifle 1126 | -10/Subcaves | Learned Materials terminal intel 1579 | -10/Subcaves | A swath of the cavern ceiling suddenly collapsed 1661 | -10/Subcaves | Shifting Twisted Machinery released Sub. Machine Gun 1691 | -10/Subcaves | Shifting Twisted Machinery released Battle Cannon 1736 | -10/Subcaves | Discovered new exit (range 12) 1809 | -10/Subcaves | Core integrity fell below 50% 1851 | -10/Subcaves | Core integrity fell below 20% 1860 | -10/Subcaves | Destroyed by 72-F0F(R) with Subdweller Machine Gun Last Messages --------------- 01394_ S-10 Pest suffers critical hit (Burn). 01394_ S-10 Pest destroyed. 01401_ Acquired 12 matter. 01403_ Flight Unit fries itself beyond repair. 01405_ Acquired 33 matter. A swath of the cavern ceiling suddenly collapses. Sub. Machine Gun falls loose from the Twisted Machinery. Battle Cannon falls loose from the Twisted Machinery. 01736_ EXIT=FOUND 01792_ Triggered Piercing Trap. 01792_ Spikes shoot up from the floor. 01792_ Critical hit (Impale). 01808_ Triggered Shrapnel Trap. 01808_ An expanding cloud of shrapnel blasts out in all directions. 01833_ Lgt. Treads destroyed. 01840_ LA-DIA(R) destroyed. 01852_ Sub. Optics destroyed. 01856_ Com. Wheel destroyed. 01858_ Sub. Machine Gun shoots sparks and powers down. 01858_ Lgt. Ion Engine destroyed. Map ----- +----------------------------------------------------+ | ?????????????????## #?????????????????????????? | | ??????????????????# < #?????????????????????????? | | ??????????????????# ##?????????????????????????? | | ??????????????????# #??????????????????????????? | | ??????????????##### #??????????????????????????? | | ?????????????## #??????????????????????????? | | ?????????????# #??????????????????????????? | | ?????????????# ###?????????????????????????? | | ?????????????# ## # #?????????????????????????? | | ?????????????# #### #??????????????????????????? | | ?????????????# #### ##?????????????????????????? | | ?????????????# # #?????????????????????????? | | ?????????????## #?????????????????????????? | | ?????????????### ## ##?????????????????????????? | | ?????????????# #### ##?????????????????????????? | | ?????????????# #### #?????????????????????????? | | ?????????????# ### #??????????????? #????????? | | ?????????????# ## ##????????????# #????????? | | ?????????????# ^ ####???##??? #????????? | | ?????????????# ^ ^ ^ #### ### #????????? | | ?????????????## ##???????? | | ?????????????## ## ### ????????? | | ?????????????# ##; ##### !?????????? | | ????????????# ###; ; #?? ???????????? | | ????????????# ## ;; R #????? #??????????? | | ????????????## #### #; @ %! ##?????????????????? | | ?????????????####??###### ## #?????????????????? | | ????????????????????????#### ##?????????????????? | | ??????????????????????????? #??????????????????? | | ??????????????????????????? #??????????????????? | | ?????????????????????????? #??????????????????? | | ?????????????????????????? #??????????????????? | | ?????????????????????????"" ??????????????????? | | ?????????????????????????#"" ??????????????????? | | ?????????????????????????# "" ??????????????????? | | ????????????????????????? """"?????????????????? | | ????????????????????????? "" ?????????????????? | | ?????????????????????????####"""?????????????????? | | ?????????????????????????????#"""????????????????? | | ???????????????????????????????##????????????????? | | ?????????????????????????????????????????????????? | | ?????????????????????????????????????????????????? | | ?????????????????????????????????????????????????? | | ?????????????????????????????????????????????????? | | ?????????????????????????????????????????????????? | | ?????????????????????????????????????????????????? | | ?????????????????????????????????????????????????? | | ?????????????????????????????????????????????????? | | ?????????????????????????????????????????????????? | | ?????????????????????????????????????????????????? | +----------------------------------------------------+ Best States ------------- Heat Dissipation 25 Energy Generation 10 Energy Capacity 250 Matter Stores 300 Matter Capacity 300 Sight Range 21 Terrain Scan Density 10 Evasion (%) 55 Recoil Reduction 2 Item Schematics ----------------- None Robot Schematics ------------------ None Fabricated ------------ Nothing Alien Tech Used ----------------- None Achievements -------------- None Challenges ------------ None Game ------ Seed RecyclingRainbowSabre Manual? 0 Play Time 00:12:25 Cumulative 371.0 hours Start 2023.07.05 @ 10:07:02 End 2023.07.05 @ 10:13:46 Sessions 1 Manual Loads 0 Difficulty Rogue Special Mode None Game No. 541 Rogue 514 Adventurer 4 Explorer 23 Win Type - Total 20 Types 14/0/2/2/1/0/0/1/0 Lore% 81 Gallery% 91 Achievement% 83 Wizard Run 0 Options --------- ASCII 0 Keyboard 1 Movement Numpad Keybinds 0 Fullscreen 1 Font 18/SmallcapsGlow Map View 76x50 Tactical HUD 1 Map Filters NONE Filters NONE Steam 1 RUN: 0e42998f-a679-4153-8698-e3bbc9e22be8